bitfinex-derivatives/quotes_ETHF0:USTF0_20251211
["timestamp","ask_amount","ask_price","bid_price","bid_amount"]
[1765453520640,1.26e-06,3196.7,3196.0,3.21249403]
[1765453520944,1.11973367,3196.1,3196.0,3.36892403]
[1765453522553,3.82993367,3196.1,3196.0,3.36892403]
[1765453525751,2.7102,3196.1,3196.0,3.36892403]
[1765453526859,2.7102,3196.1,3196.0,7.29796047]
[1765453531860,2.7102,3196.1,3196.0,4.09016047]
[1765453540571,2.7102,3196.1,3196.0,0.16112403]
[1765453564182,2.7102,3196.1,3196.0,5.78137365]
[1765453569685,2.7102,3196.1,3196.0,8.98917365]
[1765453570385,2.7102,3196.1,3196.0,5.78137365]
[1765453570588,2.7102,3196.1,3196.0,8.98917365]
[1765453572987,2.7102,3196.1,3196.0,5.78137365]
[1765453573187,2.7102,3196.1,3196.0,8.98917365]
[1765453574788,2.7102,3196.1,3196.0,3.36892403]
[1765453575788,3.82993367,3196.1,3196.0,3.36892403]
[1765453576183,2.7102,3196.1,3196.0,3.36892403]
[1765453580593,2.7102,3196.1,3196.0,8.98917365]
[1765453581190,2.7102,3196.1,3196.0,3.36892403]
[1765453584699,2.02874,3196.1,3196.0,3.36892403]
[1765453585102,1.14779938,3196.2,3196.1,0.15642]
[1765453596409,1.14779938,3196.2,3196.1,3.36422]
[1765453597608,1.14779938,3196.2,3196.1,0.15642]
[1765453597808,1.14779938,3196.2,3196.1,3.36422]
[1765453600706,0.4237,3196.0,3195.8,0.15644]
[1765453600906,1.14779938,3195.9,3195.7,3.2078]
[1765453602007,1.14779938,3195.9,3195.8,0.15644]
[1765453602207,2.71929876,3196.0,3195.8,0.15644]
[1765453603909,2.71929876,3196.0,3195.9,0.15643]
[1765453604307,2.71929876,3196.0,3195.5,0.00469403]
[1765453604308,3.6315,3196.5,3195.5,0.41209403]
[1765453604507,1.14779938,3196.1,3196.0,0.4074]
[1765453604711,1.14779938,3196.1,3195.7,3.2078]
[1765453605113,1.14779938,3195.9,3195.7,3.2078]
[1765453606610,1.14779938,3195.9,3195.8,0.15644]
[1765453609511,2.71929876,3196.0,3195.9,0.15643]
[1765453610820,1.57149938,3196.0,3195.9,0.15643]
[1765453611416,2.7643,3196.3,3196.2,0.15642]
[1765453611613,3.91209938,3196.3,3196.2,0.15642]
[1765453613319,1.14779938,3196.3,3196.2,0.15642]
[1765453615319,0.4237,3196.5,3196.4,0.15641]
[1765453616517,1.57149938,3196.5,3196.4,0.15641]
[1765453625526,2.70110126,3196.7,3196.6,0.1564]
[1765453626230,3.84890064,3196.7,3196.6,0.1564]
[1765453629428,2.70110126,3196.7,3196.6,3.3642]
[1765453630326,3.84890064,3196.7,3196.6,3.3642]
[1765453637943,2.70110126,3196.7,3196.6,3.3642]
[1765453639541,3.84890064,3196.7,3196.6,3.3642]
[1765453640032,7.06100064,3196.7,3196.6,9.7892]
[1765453640439,10.15230064,3196.7,3196.6,9.7892]
[1765453640645,7.06100064,3196.7,3196.6,9.7892]
[1765453641047,2.70110126,3196.7,3196.6,9.7892]
[1765453643049,5.91320126,3196.7,3196.6,9.7892]
[1765453643944,2.70110126,3196.7,3196.6,6.5814]
[1765453644144,5.91320126,3196.7,3196.6,9.7892]
[1765453645153,2.70110126,3196.7,3196.6,9.7892]
[1765453646254,5.91320126,3196.7,3196.6,9.7892]
[1765453647853,3.21210126,3196.7,3196.6,9.7892]
[1765453651056,1.26e-06,3196.7,3196.6,3.3642]
[1765453651850,4.73600126,3196.7,3196.6,3.3642]
[1765453652057,5.85496626,3196.7,3196.6,0.1564]
[1765453653957,1.11896626,3196.7,3196.6,2.3744]
[1765453654160,5.85496626,3196.7,3196.6,4.6264]
[1765453654459,5.85496626,3196.7,3196.6,2.3744]
[1765453654963,5.85496626,3196.7,3196.6,0.1564]
[1765453683475,6.97393126,3196.7,3196.6,0.1564]
[1765453683675,3.0096,3196.0,3195.9,5.60602041]
[1765453683886,4.128565,3196.0,3195.9,1.5284]
[1765453684384,3.0096,3195.9,3195.8,4.89264]
[1765453685274,5.4237,3195.9,3195.8,4.89264]
[1765453686878,5.4237,3195.9,3195.8,6.42824]
[1765453691484,5.4237,3195.9,3195.8,4.89264]
[1765453691885,5.4237,3195.9,3195.8,6.42824]
[1765453692288,5.4237,3195.9,3195.8,0.15644]
[1765453692587,4.0492,3195.6,3195.5,0.00469403]
[1765453692779,5.168165,3195.6,3195.5,0.16114403]
[1765453693180,3.124865,3195.6,3195.5,5.18644403]
[1765453693583,5.168165,3195.6,3195.5,5.18644403]
[1765453693890,5.168165,3195.6,3195.5,3.23074403]
[1765453694785,5.168165,3195.6,3195.5,0.16114403]
[1765453695090,2.4141,3195.9,3195.8,4.06104]
[1765453695279,4.42,3195.9,3195.8,4.06104]
[1765453695481,2.4141,3195.9,3195.8,4.06104]
[1765453695877,2.4141,3195.9,3195.8,7.26884]
[1765453696082,2.4141,3195.9,3195.8,13.26884]
[1765453696284,5.2137,3196.6,3196.5,4.061]
[1765453696478,7.257,3196.6,3196.5,2.1053]
[1765453696890,7.257,3196.6,3196.5,0.1564]
[1765453697691,7.257,3196.6,3196.5,2.1053]
[1765453697990,7.257,3196.6,3196.5,0.1564]
[1765453701893,8.375965,3196.6,3196.5,2.1053]
[1765453702594,8.375965,3196.6,3196.5,0.1564]
[1765453702790,8.40534238,3196.6,3196.5,0.1564]
[1765453703592,5.19754238,3196.6,3196.5,4.061]
[1765453704000,3.15424238,3196.6,3196.5,5.1817]
[1765453704202,5.19754238,3196.6,3196.5,4.061]
[1765453705604,5.19754238,3196.6,3196.5,2.1053]
[1765453707398,5.19754238,3196.6,3196.5,0.1564]
[1765453709212,8.40534238,3196.6,3196.5,0.1564]
[1765453709412,8.40534238,3196.6,3195.9,3.2078]
[1765453709413,4.1866,3196.2,3196.1,3.92063644]
[1765453709914,4.1866,3196.2,3196.1,0.15642]
[1765453710513,4.1866,3195.8,3195.7,3.92063644]
[1765453710814,4.1866,3195.6,3195.5,9.33638047]
[1765453711414,5.33494238,3195.6,3195.5,9.33638047]
[1765453712419,1.14834238,3196.0,3195.9,4.31043]
[1765453712718,4.1866,3196.2,3196.1,4.31042]
[1765453713814,5.33494238,3196.2,3196.1,4.31042]
[1765453715715,5.33494238,3196.2,3196.1,2.20322]
[1765453718314,5.33494238,3196.2,3196.1,0.15642]
[1765453718614,4.1866,3195.8,3195.7,3.92063644]
[1765453718819,5.33494238,3195.8,3195.5,7.13313047]
[1765453719008,4.1866,3195.6,3195.5,11.44358047]
[1765453719212,5.33494238,3195.6,3195.5,11.44358047]
[1765453720210,5.33494238,3195.6,3195.5,12.67778047]
[1765453720416,3.27014238,3195.6,3195.5,12.67778047]
[1765453724221,2.1218,3195.6,3195.5,12.67778047]
[1765453724518,3.27014238,3195.6,3195.5,12.67778047]
[1765453727024,5.33494238,3195.6,3195.5,12.67778047]
[1765453729427,3.27014238,3195.6,3195.5,12.67778047]
[1765453731726,1.14834238,3195.6,3195.5,12.67778047]
[1765453731930,3.27014238,3195.6,3195.5,12.67778047]
[1765453732333,5.33494238,3195.6,3195.5,12.67778047]
[1765453732826,5.33494238,3195.6,3195.5,7.28958047]
[1765453733027,5.33494238,3195.6,3195.5,4.08178047]
[1765453733420,5.33494238,3195.6,3195.5,0.16114403]
[1765453734727,5.33494238,3195.6,3195.1,3.36427]
[1765453734728,4.1866,3195.2,3195.1,3.36427]
[1765453735030,5.33494238,3195.2,3195.1,3.36427]
[1765453735730,3.27014238,3195.2,3195.1,7.51827]
[1765453735932,10.2718,3195.8,3195.7,4.31044]
[1765453736231,11.42014238,3195.8,3195.7,4.31044]
[1765453736430,6.14754238,3195.8,3195.7,4.31044]
[1765453736833,8.21234238,3195.8,3195.7,4.31044]
[1765453739935,8.21234238,3195.8,3195.7,2.20324]
[1765453741739,8.21234238,3195.8,3195.7,0.15644]
[1765453749037,5.55214238,3195.8,3195.7,6.51074]
[1765453749638,4.02574238,3195.8,3195.7,6.51074]
[1765453750438,2.8774,3195.8,3195.7,6.51074]
[1765453750636,4.02574238,3195.8,3195.7,6.51074]
[1765453750839,5.55214238,3195.8,3195.7,6.51074]
[1765453751031,7.24604238,3195.8,3195.7,4.97324]
[1765453751237,7.24604238,3195.8,3195.7,3.36424]
[1765453754538,7.24604238,3195.8,3195.7,0.15644]
[1765453755438,3.7169,3195.5,3195.4,3.92063644]
[1765453755639,4.86524238,3195.5,3195.4,3.92063644]
[1765453755844,2.8596,3195.3,3195.2,6.25647]
[1765453756046,4.00794238,3195.3,3195.2,6.25647]
[1765453757333,4.00794238,3195.3,3195.2,4.81877]
[1765453757537,4.00794238,3195.3,3195.2,6.25647]
[1765453757843,4.00794238,3195.3,3195.2,4.81877]
[1765453758342,4.00794238,3195.3,3195.2,6.25647]
[1765453764245,4.00794238,3195.3,3195.2,3.04867]
[1765453764639,3.97985549,3195.3,3195.2,3.04867]
[1765453767546,3.97985549,3195.3,3195.2,0.15647]
[1765453769050,3.97985549,3195.3,3195.2,1.61097]
[1765453769545,3.97985549,3195.3,3195.2,0.15647]
[1765453779655,3.97985549,3195.3,3195.2,1.46097]
[1765453781759,3.97985549,3195.3,3195.2,0.15647]
[1765453781951,3.97985549,3195.3,3195.2,1.46097]
[1765453784361,3.97985549,3195.3,3195.2,5.38160644]
[1765453788568,3.97985549,3195.3,3195.2,6.66520644]
[1765453788764,2.518,3195.4,3195.3,2.74456]
[1765453788966,2.518,3195.4,3195.3,5.95236]
[1765453789869,3.8439,3195.4,3195.3,5.95236]
[1765453791167,5.1886,3195.4,3195.3,5.95236]
[1765453795673,5.1886,3195.4,3195.3,8.6046517]
[1765453797474,5.1886,3195.4,3195.3,4.66876]
[1765453798376,5.1886,3195.4,3195.3,3.36426]
[1765453800177,5.1886,3195.4,3195.3,5.75166]
[1765453800371,5.2957,3196.4,3196.3,1.24591]
[1765453800571,1.0783,3196.4,3196.3,2.32881]
[1765453801171,2.0879,3196.4,3196.3,2.32881]
[1765453802578,3.20815549,3196.4,3196.3,2.32881]
[1765453802883,2.19855549,3196.4,3196.3,2.32881]
[1765453804482,3.20815549,3196.4,3196.3,2.32881]
[1765453805785,3.20815549,3196.4,3196.3,1.24591]
[1765453805985,3.20815549,3196.4,3196.3,2.32881]
[1765453810382,3.20815549,3196.4,3196.3,0.15641]
[1765453810778,3.20815549,3196.4,3196.3,2.32881]
[1765453814592,3.20815549,3196.4,3196.3,0.15641]
[1765453817390,2.2766,3195.6,3195.5,5.5007]
[1765453817596,3.39685549,3195.6,3195.5,3.36425]
[1765453819099,3.39685549,3195.6,3195.5,0.15645]
[1765453822502,2.2766,3195.6,3195.5,2.44935]
[1765453822701,3.39685549,3195.6,3195.5,1.34095]
[1765453823304,3.39685549,3195.6,3195.5,0.15645]
[1765453824807,3.42543983,3195.6,3195.5,0.15645]
[1765453829512,3.42543983,3195.6,3195.5,1.34095]
[1765453830011,3.42543983,3195.6,3195.5,0.15645]
[1765453831511,6.63323983,3195.6,3195.5,0.15645]
[1765453831713,2.2366,3194.9,3194.8,0.00391487]
[1765453831914,3.38543983,3194.9,3194.8,0.00391487]
[1765453832608,3.38543983,3194.9,3194.8,0.16040487]
[1765453835313,2.2366,3194.9,3194.8,1.19660487]
[1765453835613,2.2366,3194.9,3194.8,0.16040487]
[1765453837106,2.2366,3194.9,3194.8,1.19660487]
[1765453838516,2.2366,3194.9,3194.8,0.16040487]
[1765453840711,2.2366,3194.9,3194.8,1.19660487]
[1765453841207,2.2366,3194.9,3194.8,2.33080487]
[1765453841709,2.2366,3194.9,3194.8,1.19660487]
[1765453843517,2.2366,3194.9,3194.8,0.16040487]
[1765453845821,2.2366,3194.9,3194.8,1.19660487]
[1765453846020,2.2366,3194.9,3194.8,0.16040487]
[1765453846225,2.2366,3194.9,3194.8,1.19660487]
[1765453847020,2.2366,3194.9,3194.8,0.16040487]
[1765453849119,2.2366,3194.9,3194.8,1.19660487]
[1765453849325,3.38543983,3194.9,3194.8,1.19660487]
[1765453849524,3.38543983,3194.9,3194.8,0.16040487]
[1765453851922,2.2366,3194.9,3194.8,1.19660487]
[1765453854023,2.2366,3194.9,3194.8,0.16040487]
[1765453854423,2.2366,3194.9,3194.8,1.19660487]
[1765453857223,2.2366,3194.9,3194.8,2.33080487]
[1765453857424,2.2366,3194.9,3194.8,1.19660487]
[1765453858628,3.38543983,3194.9,3194.8,1.19660487]
[1765453860127,1.5181,3195.0,3194.9,2.06818]
[1765453860332,2.8981,3195.1,3195.0,2.06818]
[1765453860520,2.8981,3195.1,3195.0,2.52768]
[1765453860927,5.83173983,3195.1,3195.0,1.11908]
[1765453861123,5.83173983,3195.1,3195.0,0.15648]
[1765453861329,5.83173983,3195.1,3195.0,1.11908]
[1765453862227,5.83173983,3195.1,3195.0,2.06818]
[1765453862733,5.83173983,3195.1,3195.0,1.11908]
[1765453862929,5.83173983,3195.1,3195.0,0.15648]
[1765453866227,6.98057966,3195.1,3195.0,0.15648]
[1765453866525,5.83173983,3195.1,3195.0,0.15648]
[1765453866727,6.98057966,3195.1,3195.0,0.15648]
[1765453868635,2.3142,3195.0,3194.9,3.2078]
[1765453869633,1.7848,3194.9,3194.8,0.16039487]
[1765453869832,1.7848,3194.6,3194.5,3.2078]
[1765453870136,1.7848,3194.2,3193.6,7.54143954]
[1765453870335,2.02983983,3193.8,3193.7,2.06824]
[1765453870535,2.93363983,3193.8,3193.7,2.06824]
[1765453870733,2.93363983,3193.8,3193.7,1.11914]
[1765453870935,2.93763535,3193.8,3193.7,1.12299388]
[1765453871131,2.93763535,3193.8,3193.7,0.16039388]
[1765453872434,2.93763535,3193.8,3193.7,1.12299388]
[1765453873241,2.93763535,3193.8,3193.7,0.16039388]
[1765453876933,2.93763535,3193.8,3193.7,1.32329388]
[1765453879442,0.00399552,3193.8,3193.7,2.44889388]
[1765453881644,2.32139552,3193.8,3193.7,2.44889388]
[1765453882348,1.13729552,3193.8,3193.7,2.44889388]
[1765453884449,2.32139552,3193.8,3193.7,2.44889388]
[1765453885744,1.13729552,3193.8,3193.7,2.44889388]
[1765453886146,2.32139552,3193.8,3193.7,2.44889388]
[1765453887138,2.32139552,3193.8,3193.7,0.16039388]
[1765453887749,2.32139552,3193.8,3193.7,1.32329388]
[1765453888552,2.32139552,3193.8,3193.7,2.44889388]
[1765453889745,2.32139552,3193.8,3193.7,0.16039388]
[1765453891644,2.0859,3193.3,3193.2,4.262]
[1765453891952,3.20699941,3193.3,3193.2,5.3248]
[1765453892651,3.20699941,3193.3,3193.2,5.4841501]
[1765453893151,2.0859,3193.3,3193.2,5.4841501]
[1765453896247,0.6594,3193.5,3193.4,2.27355]
[1765453896248,1.7028,3193.5,3193.4,2.27355]
[1765453896446,0.00469403,3193.6,3193.5,2.27355]
[1765453899156,0.00469403,3193.6,3193.5,2.84425]
[1765453902555,2.77224585,3193.9,3193.8,2.27354]
[1765453902855,1.585e-05,3193.9,3193.8,6.60243941]
[1765453903061,3.2078,3194.3,3194.2,0.45252]
[1765453903654,3.21093976,3194.3,3194.2,0.45252]
[1765453905466,0.00313976,3194.3,3194.2,0.45252]
[1765453905764,9.76e-06,3194.3,3194.2,3.66032]
[1765453908474,1.72354379,3194.6,3194.5,0.318]
[1765453908680,1.38346379,3194.6,3194.5,0.318]
[1765453908874,0.99012379,3194.6,3194.5,0.318]
[1765453909175,0.27743379,3194.6,3194.5,0.318]
[1765453909472,0.00355342,3194.6,3194.5,0.1565]
[1765453909679,4.03e-06,3194.9,3194.8,0.5826]
[1765453909879,4.03e-06,3194.9,3194.8,1.86018941]
[1765453910679,0.00294925,3194.9,3194.8,0.73909]
[1765453913280,0.00294925,3194.9,3194.8,4.65447552]
[1765453916478,0.00294925,3194.9,3194.8,0.73909]
[1765453919079,2.64744925,3194.9,3194.8,0.73909]
[1765453919285,2.64744925,3194.9,3194.8,0.44779]
[1765453919683,2.64744925,3194.9,3194.8,0.85009]
[1765453920988,0.00294925,3194.9,3194.8,0.85009]
[1765453921186,2.3879,3195.3,3195.2,1.50787]
[1765453921691,3.8672,3195.5,3195.4,1.50786]
[1765453921889,3.54002,3195.5,3195.4,1.50786]
[1765453922190,3.5430612,3195.5,3195.4,1.50786]
[1765453925390,0.3352612,3195.5,3195.4,1.50786]
[1765453927093,1.6666612,3195.5,3195.4,1.50786]
[1765453927295,0.3352612,3195.5,3195.4,1.50786]
[1765453928394,0.3352612,3195.5,3195.4,5.42324552]
[1765453929696,1.6666612,3195.5,3195.4,5.42324552]
[1765453930090,0.3352612,3195.5,3195.4,8.63104552]
[1765453930286,0.0030412,3195.5,3195.4,9.75214493]
[1765453930491,0.0030412,3195.5,3195.4,5.83675941]
[1765453931789,0.0030412,3195.5,3195.4,4.71566]
[1765453932998,3.3897412,3195.5,3195.4,4.03996]
[1765453933201,3.3897412,3195.5,3195.4,7.96299112]
[1765453933601,3.3897412,3195.5,3195.4,4.03996]
[1765453935002,3.3897412,3195.5,3195.4,7.96589685]
[1765453935398,0.7452412,3195.5,3195.4,4.95576]
[1765453935802,2.0766412,3195.5,3195.4,4.95576]
[1765453938298,3.2482412,3195.5,3195.4,4.03996]
[1765453938700,3.2482412,3195.5,3195.4,4.86026]
[1765453939002,3.2482412,3195.5,3195.4,4.03996]
[1765453939304,3.2482412,3195.5,3195.4,4.86026]
[1765453940502,2.0766412,3195.5,3195.4,4.86026]
[1765453941605,3.2482412,3195.5,3195.4,4.86026]
[1765453943606,3.2482412,3195.5,3195.4,4.76826]
[1765453943806,2.0766412,3195.5,3195.4,4.76826]
[1765453944509,0.7452412,3195.5,3195.4,4.76826]
[1765453944709,0.0030412,3195.5,3195.4,4.76826]
[1765453945410,0.7171412,3195.5,3195.4,4.76826]
[1765453946208,0.0030412,3195.5,3195.4,4.76826]
[1765453948307,0.7171412,3195.5,3195.4,4.76826]
[1765453949311,0.7171412,3195.5,3195.4,1.56046]
[1765453949511,0.7171412,3195.5,3195.4,10.37428041]
[1765453950011,3.0688412,3195.5,3195.4,10.37428041]
[1765453950310,1.9293412,3195.5,3195.4,10.37428041]
[1765453950612,0.7171412,3195.5,3195.4,10.37428041]
[1765453953419,0.7171412,3195.5,3195.4,7.16648041]
[1765453953609,0.7171412,3195.5,3195.4,10.37428041]
[1765453954416,0.0030412,3195.5,3195.4,10.37428041]
[1765453954820,0.7140412,3195.5,3195.4,10.37428041]
[1765453957517,0.7140412,3195.5,3195.4,4.76826]
[1765453958521,0.0030412,3195.5,3195.4,4.76826]
[1765453959117,2.1346712,3195.7,3195.6,1.07855]
[1765453959320,2.1346712,3195.7,3195.6,2.2268092]
[1765453959521,0.00469403,3195.8,3195.7,1.06204]
[1765453959720,0.00469403,3195.8,3195.7,6.68488609]
[1765453960222,0.0075866,3195.8,3195.7,6.68856943]
[1765453961625,2.3464866,3195.8,3195.7,6.68856943]
[1765453961816,2.3464866,3195.8,3195.7,6.23576943]
[1765453962724,2.3464866,3195.8,3195.7,6.72406943]
[1765453962920,2.3464866,3195.8,3195.7,6.23576943]
[1765453963814,2.3464866,3195.8,3195.7,0.61292334]
[1765453964711,2.3464866,3195.8,3195.7,3.82072334]
[1765453965918,0.0075866,3195.8,3195.7,4.29262334]
[1765453966427,0.0075866,3195.8,3195.7,5.44088254]
[1765453969022,0.0075866,3195.8,3195.7,2.23308254]
[1765453969324,0.0075866,3195.8,3195.7,5.44088254]
[1765453971127,2.5353966,3196.1,3196.0,0.84383]
[1765453971318,2.5353966,3196.1,3196.0,1.9920892]
[1765453971518,0.6594,3196.5,3196.0,1.9920892]
[1765453971519,2.9983,3196.5,3196.4,0.50011]
[1765453972024,4.1465592,3196.5,3196.4,0.50011]
[1765453972222,4.14955593,3196.5,3196.4,0.15641]
[1765453972528,4.14955593,3196.5,3196.4,4.08929285]
[1765453975424,4.14955593,3196.5,3196.4,0.15641]
[1765453978831,3.00129673,3196.5,3196.4,0.15641]
[1765453979028,4.14955593,3196.5,3196.4,0.15641]
[1765453985038,2.0957,3196.2,3196.1,0.16111403]
[1765453985235,4.3922184,3196.2,3196.1,0.16111403]
[1765453985427,3.2439592,3196.2,3196.1,0.16111403]
[1765453985826,2.0957,3195.8,3195.7,0.16012334]
[1765453986032,3.2439592,3195.8,3195.7,0.16012334]
[1765453986225,2.0957,3195.3,3195.2,5.62284609]
[1765453986436,2.0957,3195.0,3194.9,5.58310332]
[1765453986632,1.0166,3195.0,3194.9,5.58310332]
[1765453987336,1.0166,3195.0,3194.9,5.58567476]
[1765453987537,1.0166,3195.0,3194.9,5.74215476]
[1765453991742,2.0957,3195.0,3194.9,5.74215476]
[1765453992243,1.0166,3195.0,3194.9,5.74215476]
[1765453994144,2.7037,3195.0,3194.9,0.15905144]
[1765453996948,2.0957,3195.0,3194.9,2.27975144]
[1765453997251,2.0957,3195.0,3194.9,0.15905144]
[1765453997644,2.0957,3195.0,3194.9,1.22585144]
[1765454001558,2.0957,3195.0,3194.9,0.15905144]
[1765454003861,2.0957,3195.0,3194.9,1.38665144]
[1765454004262,2.0957,3195.0,3194.9,0.15905144]
[1765454006963,2.0957,3195.0,3194.9,1.38665144]
[1765454007561,2.0957,3195.0,3194.9,2.69445144]
[1765454008364,6.8713592,3195.3,3195.2,2.69187]
[1765454008557,6.8713592,3195.3,3195.2,1.38407]
[1765454008752,5.7231,3195.3,3195.2,1.38407]
[1765454008957,5.7231,3195.3,3195.2,0.15647]
[1765454014367,5.6319,3195.3,3195.2,2.66867]
[1765454014568,5.6319,3195.3,3195.2,1.41337]
[1765454015068,5.6319,3195.3,3195.2,0.15647]
[1765454017073,5.6319,3195.3,3195.2,2.66867]
[1765454018073,5.6319,3195.3,3195.2,1.41337]
[1765454018674,5.6319,3195.3,3195.2,0.15647]
[1765454023684,5.6319,3195.3,3195.2,1.41337]
[1765454024481,2.4241,3195.3,3195.2,1.41337]
[1765454027277,2.4241,3195.3,3195.2,2.66867]
[1765454027471,8.4663,3195.5,3195.4,2.66866]
[1765454029582,2.8978,3195.5,3195.4,2.66866]
[1765454030081,4.1095,3195.5,3195.4,2.66866]
[1765454030580,5.2585,3195.5,3195.4,2.66866]
[1765454031082,4.1095,3195.5,3195.4,2.66866]
[1765454032685,2.8978,3195.5,3195.4,2.66866]
[1765454034184,2.8978,3195.5,3195.4,2.88167653]
[1765454036087,4.1095,3195.5,3195.4,2.88167653]
[1765454037484,4.1095,3195.5,3195.4,6.08947653]
[1765454038283,2.8978,3195.5,3195.4,6.08947653]
[1765454041296,2.8978,3195.5,3195.4,2.88167653]
[1765454041491,5.2196,3195.5,3195.4,6.08947653]
[1765454042391,4.1095,3195.5,3195.4,6.08947653]
[1765454046583,1.2117,3195.5,3195.4,6.08947653]
[1765454046989,2.3218,3195.5,3195.4,6.13236997]
[1765454049390,2.9016,3195.5,3195.4,3.62016997]
[1765454051494,2.9016,3195.5,3195.4,0.41236997]
[1765454052997,2.9016,3195.5,3195.0,0.6855]
[1765454052998,2.0005,3195.0,3194.9,5.18457144]
[1765454053593,2.0005,3195.0,3194.9,3.36685144]
[1765454053801,2.5549,3195.0,3194.9,3.36685144]
[1765454054698,2.5549,3195.0,3194.9,0.15905144]
[1765454056599,3.67503557,3195.0,3194.9,0.15905144]
[1765454057702,6.88283557,3195.0,3194.9,0.15905144]
[1765454062919,2.0005,3194.7,3194.6,0.00469403]
[1765454063114,3.12063557,3194.7,3194.6,0.16119403]
[1765454064023,3.12063557,3194.7,3194.6,0.16503428]
[1765454067220,3.12063557,3194.7,3194.6,1.11833428]
[1765454068425,3.12063557,3194.7,3194.6,0.16503428]
[1765454069525,3.12063557,3194.7,3194.6,2.09973428]
[1765454069720,2.0005,3194.7,3194.6,2.09973428]
[1765454070220,2.0005,3194.7,3194.6,1.11833428]
[1765454070827,3.14986289,3194.7,3194.6,1.11833428]
[1765454071125,3.14986289,3194.7,3194.6,2.09973428]
[1765454072024,3.14986289,3194.7,3194.6,1.11833428]
[1765454072222,3.14986289,3194.7,3194.6,2.09973428]
[1765454074131,3.14986289,3194.7,3194.6,1.11833428]
[1765454075727,3.14986289,3194.7,3194.6,0.16503428]
[1765454081334,2.0005,3194.7,3194.6,0.16503428]
[1765454081530,3.14986289,3194.7,3194.6,0.16503428]
[1765454085041,3.14986289,3194.7,3194.6,2.15453428]
[1765454085439,3.14986289,3194.7,3194.6,1.17313428]
[1765454087644,3.14986289,3194.7,3194.6,0.16503428]
[1765454088838,3.14986289,3194.7,3194.6,1.17313428]
[1765454091344,2.17446289,3194.7,3194.6,2.15453428]
[1765454091547,3.10536289,3194.7,3194.6,2.15453428]
[1765454092453,5.18116289,3194.7,3194.6,2.15453428]
[1765454095150,5.18116289,3194.7,3194.6,0.16503428]
[1765454100161,5.18116289,3194.7,3194.6,1.17313428]
[1765454100460,5.18116289,3194.7,3194.6,0.16503428]
[1765454100760,4.0318,3194.7,3194.6,1.91273428]
[1765454100957,4.0318,3194.7,3194.6,1.04173428]
[1765454101261,4.0318,3194.7,3194.6,0.16503428]
[1765454101762,4.0318,3194.7,3194.6,1.04173428]
[1765454102162,4.0318,3194.7,3194.6,1.91273428]
[1765454102460,4.0318,3194.7,3194.6,1.04173428]
[1765454102763,4.0318,3194.7,3194.6,1.91273428]
[1765454103763,3.1009,3194.7,3194.6,1.91273428]
[1765454104357,2.0758,3194.7,3194.6,5.84176779]
[1765454104962,2.0758,3194.7,3194.6,1.91273428]
[1765454105360,2.9622,3194.7,3194.6,1.91273428]
[1765454107261,2.0758,3194.7,3194.6,1.91273428]
[1765454110874,3.8452,3194.7,3194.6,0.16503428]
[1765454111066,3.8452,3194.7,3194.6,1.04173428]
[1765454111462,3.8452,3194.7,3194.6,0.16503428]
[1765454111673,3.8452,3194.7,3194.6,4.09913159]
[1765454111973,3.8452,3194.7,3194.6,4.97583159]
[1765454112273,3.8452,3194.7,3194.6,5.84683159]
[1765454113679,3.8452,3194.7,3194.6,4.09913159]
[1765454117281,3.8452,3194.7,3194.6,0.16503428]
[1765454119282,3.8452,3194.7,3194.6,4.09913159]
[1765454121083,3.8452,3194.7,3194.6,4.91273159]
[1765454121283,3.8452,3194.7,3194.6,5.69913159]
[1765454126287,3.8452,3194.7,3194.6,4.09913159]
[1765454127689,3.8452,3194.7,3194.6,4.91273159]
[1765454132087,3.8452,3194.7,3194.6,4.09913159]
[1765454132290,3.8452,3194.7,3194.6,4.83123159]
[1765454133391,3.8452,3194.7,3194.6,4.09913159]
[1765454134586,3.8452,3194.7,3194.6,0.16503428]
[1765454141996,7.053,3194.7,3194.6,0.16034025]
[1765454144299,1.5096,3194.4,3194.3,0.00469403]
[1765454144600,6.32213702,3194.4,3194.3,0.00469403]
[1765454145300,6.32213702,3194.4,3194.3,0.0084729]
[1765454145500,6.32213702,3194.4,3194.3,0.1649829]
[1765454147005,6.32213702,3194.4,3193.4,3.45376599]
[1765454147306,1.5096,3194.1,3194.0,0.15652]
[1765454148205,1.51256674,3194.1,3194.0,0.15901344]
[1765454148404,2.63310376,3194.1,3194.0,0.15901344]
[1765454148605,5.05940376,3194.1,3194.0,0.15901344]
[1765454149206,3.93886674,3194.1,3194.0,2.06501344]
[1765454152309,3.21046674,3194.1,3194.0,2.06501344]
[1765454158111,3.93886674,3194.1,3194.0,2.06501344]
[1765454160613,3.21046674,3194.1,3194.0,2.06501344]
[1765454161316,3.90236674,3194.1,3194.0,2.06501344]
[1765454162514,5.02290376,3194.1,3194.0,1.30381344]
[1765454164115,5.02290376,3194.1,3194.0,2.02181344]
[1765454164316,4.33100376,3194.1,3194.0,2.02181344]
[1765454164718,3.21046674,3194.1,3194.0,2.02181344]
[1765454164917,2.42926674,3194.1,3194.0,2.02181344]
[1765454166116,3.12126674,3194.1,3194.0,2.02181344]
[1765454168220,2.42926674,3194.1,3194.0,2.02181344]
[1765454172719,3.12546674,3194.1,3194.0,2.02181344]
[1765454174022,3.12546674,3194.1,3194.0,5.22961344]
[1765454174327,3.85416674,3194.1,3194.0,4.51161344]
[1765454176928,3.85416674,3194.1,3194.0,3.81511344]
[1765454177622,3.85416674,3194.1,3194.0,0.60731344]
[1765454180428,3.85416674,3194.1,3194.0,0.15901344]
[1765454182327,3.85416674,3194.1,3194.0,1.30181344]
[1765454182524,2.42926674,3194.1,3194.0,1.99181344]
[1765454184341,3.12546674,3194.1,3194.0,1.99181344]
[1765454186846,3.85416674,3194.1,3194.0,0.57001344]
[1765454187345,3.85416674,3194.1,3194.0,0.15901344]
[1765454191452,3.85416674,3194.1,3194.0,0.89081344]
[1765454192649,5.00392198,3194.1,3194.0,0.89081344]
[1765454194647,5.00392198,3194.1,3194.0,0.15901344]
[1765454200749,3.85416674,3194.1,3194.0,0.15901344]
[1765454200949,5.00392198,3194.1,3194.0,0.15901344]
[1765454205259,5.00392198,3194.1,3194.0,0.85631344]
[1765454209057,5.00392198,3194.1,3194.0,1.27141344]
[1765454212747,5.00392198,3194.1,3194.0,1.99731344]
[1765454213259,5.00392198,3194.1,3194.0,5.936475]
[1765454213658,5.00392198,3194.1,3194.0,5.210575]